{"text_format":"1","workbook":"xlsx","n_sheets":8,"sheets":["Раздел 0","Раздел 1","Раздел 2","Раздел 3","Раздел 4_1","Раздел 4_2","Раздел 5","Раздел 6"],"not_rendered":{"charts":0,"images":0,"macros":1,"external_links":0,"defined_names":2,"comments":0,"pivot_tables":0},"unopened":[],"bounds":{"document_bytes":16777216,"sheet_cells":100000,"rows_first":2000,"rows_last":500,"rows_between":2000,"halvings":0,"cell_chars":16384,"cell_head_chars":4096},"cells_cut":0,"cells_raw":0,"read":"whole","date_system":"1900"}

{"sheet":"Раздел 0","index":0,"n_rows":24,"n_cols":7,"rows_kept":24,"cut":false,"hidden":false,"merged":[[22,0,22,1],[22,2,22,3],[22,4,22,5],[23,0,23,1],[23,2,23,3],[23,4,23,5],[19,0,19,1],[19,2,19,6],[20,0,21,1],[20,2,20,6],[21,2,21,3],[21,4,21,5],[13,0,14,2],[13,3,14,3],[15,0,15,2],[16,0,16,2],[18,0,18,1],[18,2,18,6],[12,0,12,2],[1,0,1,5],[3,0,3,5],[5,0,5,5],[7,0,7,5],[9,0,9,5],[10,0,10,5]]}
[]
["ФЕДЕРАЛЬНОЕ СТАТИСТИЧЕСКОЕ НАБЛЮДЕНИЕ"]
[]
["КОНФИДЕНЦИАЛЬНОСТЬ ГАРАНТИРУЕТСЯ ПОЛУЧАТЕЛЕМ ИНФОРМАЦИИ"]
[]
["Нарушение порядка представления статистической информации, а равно представление\nнедостоверной статистической информации влечет ответственность, установленную статьей\n13.19 Кодекса Российской Федерации об административных правонарушениях от 30.12.2001 N\n195-ФЗ, а также статьей 3 Закона Российской Федерации от 13.05.1992 N 2761-1 \"Об\nответственности за нарушение порядка представления государственной статистической\nотчетности\""]
[]
["ВОЗМОЖНО ПРЕДОСТАВЛЕНИЕ В ЭЛЕКТРОННОМ ВИДЕ"]
[]
["СВЕДЕНИЯ ОБ АДАПТИВНОЙ ФИЗИЧЕСКОЙ КУЛЬТУРЕ И СПОРТЕ"]
["по состоянию на 31 декабря 2023 г."]
[]
["Предоставляют: ",null,null,"Сроки\nпредоставления",null,"Форма N 3-АФК"]
["юридические лица, осуществляющие деятельность по адаптивной физической культуре и спорту:\nПриказ Росстата:\n- органу местного самоуправления городских округов, муниципальных районов в области физической культуры и спорта,\n- территориальному органу исполнительной власти городов федерального значения в области физической культуры и спорта;",null,null,"15 января после\nотчетного периода",null,"Приказ Росстата:\nОб утверждении формы \nот __________ № ___\nО внесении изменений\n(при наличии)\nот __________ N ___\nот __________ N ___"]
[null,null,null,null,null,"Годовая"]
["органы местного самоуправления городских округов, муниципальных районов в области физической культуры и спорта, территориальные органы исполнительной власти городов федерального значения в области физической культуры и спорта:\n- органу исполнительной власти субъекта Российской Федерации в области физической культуры и спорта;",null,null,"25 января после\nотчетного периода"]
["органы исполнительной власти субъектов Российской Федерации в области физической культуры и спорта:\n- Министерству спорта Российской Федерации",null,null,"10 февраля после\nотчетного периода"]
[]
["Наименование отчитывающейся организации "]
["Почтовый адрес "]
["Код формы по ОКУД",null,"Код"]
[null,null,"отчитывающейся\nорганизации по ОКПО"]
[1,null,2,null,3,null,4]
["0609405"]

{"sheet":"Раздел 1","index":1,"n_rows":33,"n_cols":23,"rows_kept":33,"cut":false,"hidden":false,"merged":[[0,0,0,20],[1,0,1,20],[2,0,4,0],[2,1,4,1],[2,2,4,2],[2,3,2,7],[2,8,2,20],[3,3,4,3],[3,4,4,4],[3,5,3,7],[3,8,4,8],[3,9,3,14],[3,15,4,15],[3,16,3,20]]}
["Раздел I. Физкультурно-оздоровительная работа"]
["Коды по ОКЕИ: единица - 642; человек — 792"]
["Учреждения, осуществляющие работу с инвалидами","№ \nстроки","Количество учреждений, объединений, организаций, всего \n(ед.)","Численность штатных работников в области адаптивной физической культуры и спорта",null,null,null,null,"Численность занимающихся адаптивной физической культурой и спортом"]
[null,null,null,"Всего","из гр. 4 в сельской местности","из гр. 4 образование по специальности \"Адаптивная физическая культура и спорт\"",null,null,"Всего"," в том числе в возрасте (из гр. 9):",null,null,null,null,null,"в сельской местности","из общей численности занимающихся (гр. 9):"]
[null,null,null,null,null,"высшее","среднее","иные специалисты",null,"от 0 до 3 лет","от 4 до 5 лет","от 6 до 18 лет","от 19 до 59 лет","от 60 до 79 лет","от 80 лет и старше",null,"лица, имеющие инвалидность по общему заболеванию","лица с интеллектуальными нарушениями","лица с нарушением зрения","лица с нарушением слуха","лица с нарушением ОДА",null,"Раздел 4.1"]
[1,2,3,4,5,6,7,8,9,10,11,12,13,14,15,16,17,18,19,20,21,null,4]
["Всего учреждений, объединений, организаций\n(сумма строк 02, 13, 21, 25, 26)","01",{"$f":"SUM(C8,C19,C27,C31,C32)","v":0},{"$f":"SUM(D8,D19,D27,D31,D32)","v":0},{"$f":"SUM(E8,E19,E27,E31,E32)","v":0},0,0,0,{"$f":"SUM(J7:O7)","v":0},0,0,0,0,0,0,0,0,0,0,0,0,null,{"$f":"'Раздел 4_1'!$D$7","v":0}]
["В сфере физической культуры и спорта (сумма строк 03, 04, 05, 06, 07, 08, 09, 10, 11, 12) ","02",{"$f":"SUM(C9:C18)","v":0},{"$f":"SUM(D9:D18)","v":0},0,0,0,0,0,0,0,0,0,0,0,0,0,0,0,0,{"$f":"SUM(U9:U18)","v":0}]
["в том числе центры спортивной подготовки по спорту инвалидов ","03",null,{"$f":"SUM(F9:H9)","v":0},null,null,null,null,{"$f":"SUM(J9:O9)","v":0}]
["физкультурно- оздоровительные клубы инвалидов ","04",null,{"$f":"SUM(F10:H10)","v":0},null,null,null,null,{"$f":"SUM(J10:O10)","v":0}]
["ДЮСАШ","05",null,{"$f":"SUM(F11:H11)","v":0},null,null,null,null,0]
["СДЮСАШ","06",null,0,null,null,null,null,0]
["спортивные учреждения по спорту инвалидов ","07",null,0,null,null,null,null,0]
["отделения, группы, смешанные группы по адаптивной физической культуре и спорту ","08",null,0,null,null,null,null,0]
["училища олимпийского резерва ","09",null,0,null,null,null,null,0]
["центры спортивной подготовки ",10,null,0,null,null,null,null,0]
["СДЮШОР, ДЮСШ, ДООЦ ",11,null,0,null,null,null,null,{"$f":"SUM(J17:O17)","v":0}]
["другие учреждения и организации ",12,null,0,null,null,null,null,0]
["В сфере образования (сумма строк 14 - 20) ",13,{"$f":"SUM(C20:C26)","v":0},{"$f":"SUM(D20:D26)","v":0},0,0,0,0,0,0,0,0,0,0,0,0,0,0,0,0,{"$f":"SUM(U20:U26)","v":0}]
["в том числе: дошкольные образовательные организации ",14,null,0,null,null,null,null,0]
["организации дополнительного образования ",15,null,0,null,null,null,null,0]
["общеобразовательные организации ",16,null,0,null,null,null,null,0]
["отдельные организации, осуществляющие образовательную деятельность по адаптированным основным образовательным программам ",17,null,0,null,null,null,null,0]
["образовательные организации высшего образования ",18,null,0,null,null,null,null,0]
["профессиональные образовательные организации ",19,null,0,null,null,null,null,0]
["другие учреждения и организации ",20,null,0,null,null,null,null,0]
["В сфере труда и социальной защиты (сумма строк 22 - 24) ",21,{"$f":"SUM(C28:C30)","v":0},{"$f":"SUM(D28:D30)","v":0},0,0,0,0,0,0,0,0,0,0,0,0,0,0,0,0,{"$f":"SUM(U28:U30)","v":0}]
["в том числе: психо-неврологические интернаты ",22,null,0,null,null,null,null,0]
["реабилитационные центры",23,null,0,null,null,null,null,0]
["другие учреждения и организации",24,null,0,null,null,null,null,0]
["В сфере здравоохранения",25,null,0,null,null,null,null,0]
["В сфере Всероссийских общественных организаций",26,null,0,null,null,null,null,0]
["Из общего числа (строка 1)\n - в сельской местности",27,null,0,{"$f":"SUM(F33:H33)","v":0},null,null,null,0,null,null,null,null,null,null,{"$f":"SUM(Q33:U33)","v":0}]

{"sheet":"Раздел 2","index":2,"n_rows":23,"n_cols":18,"rows_kept":23,"cut":false,"hidden":false,"merged":[[0,0,0,17],[1,0,1,17],[2,0,4,0],[2,1,4,1],[2,17,4,17],[3,2,4,2],[3,3,4,3],[3,4,3,7],[3,8,4,8],[3,9,4,9],[3,10,4,10],[3,11,4,11],[3,12,4,12],[3,13,4,13],[3,14,4,14],[3,15,4,15],[3,16,4,16],[2,2,2,13],[2,14,2,16]]}
["Раздел II. Спортивные сооружения, приспособленные к занятиям инвалидов"]
["Код по ОКЕИ: единица — 642;человек - 792"]
["Наименование спортивного\nсооружения","№\nстроки","Количество спортсооружений (ед.)",null,null,null,null,null,null,null,null,null,null,null,"Численность сотрудников (чел.)",null,null,"Из общего числа спортивных сооружений (гр. 3)\nв сельской местности"]
[null,null,"Всего","из гр. 3 оснащенных","в том числе по формам собственности (из гр. 3):",null,null,null,"Существующие спортивные сооружения, которые в результате проведения капитального ремонта, реконструкции, модернизации полностью соответствуют требованиям доступности объектов и услуг для инвалидов","Вновь введенные в эксплуатацию спортивные сооружения, полностью соответствующие требованиям доступности объектов и услуг для инвалидов, в которых предоставляются услуги населению","Имеющие утвержденные паспорта доступности объектов и предоставляемых на них услуг","На которых обеспечиваются условия индивидуальной мобильности инвалидов и возможность для самостоятельного их передвижения по зданию и (при необходимости) по территории объекта","На которых обеспечено сопровождение инвалидов, имеющих стойкие расстройства функции зрения, слуха и самостоятельного передвижения, и оказание им помощи","На которых предоставляются услуги с использованием русского жестового языка, с допуском сурдопереводчика и тифлосурдопереводчика","Предоставляющих услуги инвалидам","Прошедших инструктирование или обучение для работы с инвалидами","Предоставляющих услуги, на которых возложено оказание инвалидам помощи при предоставлении им услуг"]
[null,null,null,null,"федеральная","субъектов Российской Федерации","муниципальная","другая"]
[1,2,3,4,5,6,7,8,9,10,11,12,13,14,15,16,17,18]
["Всего спортивных сооружений\n(сумма строк 29 - 32, 34, 35, 38 - 44)",28,{"$f":"SUM(C8:C11,C13:C14,C17:C23)","v":0},{"$f":"SUM(D8:D11,D13:D14,D17:D23)","v":0},0,0,0,0,{"$f":"SUM(I8:I11,I13:I14,I17:I23)","v":0},{"$f":"SUM(J8:J11,J13:J14,J17:J23)","v":0},{"$f":"SUM(K8:K11,K13:K14,K17:K23)","v":0},{"$f":"SUM(L8:L11,L13:L14,L17:L23)","v":0},{"$f":"SUM(M8:M11,M13:M14,M17:M23)","v":0},{"$f":"SUM(N8:N11,N13:N14,N17:N23)","v":0},{"$f":"SUM(O8:O11,O13:O14,O17:O23)","v":0},{"$f":"SUM(P8:P11,P13:P14,P17:P23)","v":0},{"$f":"SUM(Q8:Q11,Q13:Q14,Q17:Q23)","v":0},{"$f":"SUM(R8:R11,R13:R14,R17:R23)","v":0}]
["в том числе\n    Стадионы с трибунами на 1500 мести более",29,{"$f":"SUM(E8:H8)","v":0}]
["    Плоскостные спортивные сооружения ",30,{"$f":"SUM(E9:H9)","v":0}]
["    Спортивные залы ",31,0]
["    Дворцы спорта - всего  ",32,0]
["        - из них с искусственным льдом  ",33,0]
["    Крытые спортивные объекты с искусственным льдом ",34,0]
["    Манежи - всего ",35,0]
["    из них: \n        - легкоатлетические ",36,0]
["        - футбольные",37,0]
["    Велотреки, велодромы",38,0]
["    Плавательные бассейны",39,0]
["    Лыжные базы",40,0]
["    Биатлонные комплексы",41,0]
["    Сооружения для стрелковых видов спорта",42,0]
["    Гребные базы и каналы",43,0]
["    Другие спортивные сооружения",44,0]

{"sheet":"Раздел 3","index":3,"n_rows":14,"n_cols":8,"rows_kept":14,"cut":false,"hidden":false,"merged":[[0,0,0,7],[1,0,1,7],[2,0,4,0],[2,1,4,1],[2,2,2,5],[2,6,4,6],[2,7,4,7],[3,2,4,2],[3,3,4,3],[3,4,3,5]]}
["Раздел III. Финансирование адаптивной физической культуры и спорта"]
["Код по ОКЕИ: тысяча рублей - 384 (с одним десятичным знаком)"]
["Статьи расходов","№ \nстроки","Фактически выделено бюджетных средств",null,null,null,"Получено из внебюджетных источников","Израсходовано на развитие адаптивной физической культуры и спорта, всего"]
[null,null,"Всего","из федерального бюджета","из консолидированного бюджета субъекта Российской Федерации"]
[null,null,null,null,"бюджет субъекта Российской Федерации ","бюджет муниципального образования"]
[1,2,3,4,5,6,7,8]
["Расходы - всего \n(сумма строк 46-52) ",45,{"$f":"SUM(D7:F7)","v":0},{"$f":"SUM(D$8:D$14)","v":0},{"$f":"SUM(E$8:E$14)","v":0},{"$f":"SUM(F$8:F$14)","v":0},{"$f":"SUM(G$8:G$14)","v":0},{"$f":"SUM(C7,G7)","v":0}]
["из них: \n    Проведение спортивных\n    мероприятий среди \n    инвалидов",46,{"$f":"SUM(D8:F8)","v":0},null,null,null,null,{"$f":"SUM(C8,G8)","v":0}]
["    Приобретение \n    спортивного \n    оборудования и \n    инвентаря",47,0,null,null,null,null,0]
["    Капитальный ремонт \n    спортсооружений",48,0,null,null,null,null,0]
["    Инвестиции на \n    реконструкцию\n    и строительство \n    спортивных \n    сооружений",49,0,null,null,null,null,0]
["    Заработная плата \n    работников адаптивной \n    физической культуры \n    и спорта",50,0,null,null,null,null,0]
["    На содержание \n    спортивных сооружений, \n    приспособленных к \n    занятиям инвалидов",51,0,null,null,null,null,0]
["    Другие",52,{"$f":"SUM(D14:F14)","v":0},null,null,null,null,{"$f":"SUM(C14,G14)","v":0}]

{"sheet":"Раздел 4_1","index":4,"n_rows":80,"n_cols":22,"rows_kept":80,"cut":false,"hidden":false,"merged":[[0,0,0,17],[1,0,1,17],[2,0,4,0],[2,1,4,1],[2,2,4,2],[2,3,2,17],[3,3,4,3],[3,4,4,4],[3,5,4,5],[3,6,3,9],[3,10,3,13],[3,14,3,17]]}
["Раздел IV. Развитие видов спорта"]
["Коды по ОКЕИ: единица - 642; человек — 792"]
["Спортивные дисциплины  (в соответствии с ВРВС по видам спорта инвалидов)","№ \nстроки","Число отделений (ед.)","Численность занимающихся на этапах подготовки (чел.)"]
[null,null,null,"Всего","из них в возрасте от 6 до 18 лет","из гр. 4 в сельской местности","спортивно-оздоровительной",null,null,null,"начальной подготовки",null,null,null,"учебно-тренировочной"]
[null,null,null,null,null,null,"Спорт лиц с интеллектуальными нарушениями","Спорт слепых","Спорт глухих","Спорт ОДА","Спорт лиц с интеллектуальными нарушениями","Спорт слепых","Спорт глухих","Спорт ОДА","Спорт лиц с интеллектуальными нарушениями","Спорт слепых","Спорт глухих","Спорт ОДА",null,"Раздел4_2","Раздел1","Раздел4_2"]
[1,2,3,4,5,6,7,8,9,10,11,12,13,14,15,16,17,18,null,27,9,"сумма(19-26)"]
["Итого\n(сумма строк 63 - 125)",53,{"$f":"SUM(C17:C79)","v":0},{"$f":"SUM(G7:R7,'Раздел 4_2'!C7:J7)","v":0},{"$f":"SUM(E17:E79)","v":0},{"$f":"SUM(F17:F79)","v":0},0,0,0,0,0,0,0,0,0,0,0,0,null,{"$f":"'Раздел 4_2'!K7","v":0},{"$f":"'Раздел 1'!$I$7","v":0},{"$f":"SUM('Раздел 4_2'!$C7:$J7)","v":0}]
["    в том числе из строки 53:\n    центры спортивной \n    подготовки по\n    спорту инвалидов",54,null,{"$f":"SUM($G8:$R8,'Раздел 4_2'!$C8:$J8)","v":0},null,null,null,null,null,null,null,null,null,null,null,null,null,null,null,{"$f":"'Раздел 4_2'!K8","v":0},null,{"$f":"SUM('Раздел 4_2'!$C8:$J8)","v":0}]
["    физкультурно-спортивные\n    клубы инвалидов",55,null,{"$f":"SUM($G9:$R9,'Раздел 4_2'!$C9:$J9)","v":0},null,null,null,null,null,null,null,null,null,null,null,null,null,null,null,{"$f":"'Раздел 4_2'!K9","v":0},null,{"$f":"SUM('Раздел 4_2'!$C9:$J9)","v":0}]
["    ДЮСАШ",56,null,{"$f":"SUM($G10:$R10,'Раздел 4_2'!$C10:$J10)","v":0},null,null,null,null,null,null,null,null,null,null,null,null,null,null,null,{"$f":"'Раздел 4_2'!K10","v":0},null,{"$f":"SUM('Раздел 4_2'!$C10:$J10)","v":0}]
["    СДЮСАШ",57,null,{"$f":"SUM($G11:$R11,'Раздел 4_2'!$C11:$J11)","v":0},null,null,null,null,null,null,null,null,null,null,null,null,null,null,null,{"$f":"'Раздел 4_2'!K11","v":0},null,{"$f":"SUM('Раздел 4_2'!$C11:$J11)","v":0}]
["    спортивные учреждения \n    по спорту инвалидов",58,null,{"$f":"SUM($G12:$R12,'Раздел 4_2'!$C12:$J12)","v":0},null,null,null,null,null,null,null,null,null,null,null,null,null,null,null,{"$f":"'Раздел 4_2'!K12","v":0},null,{"$f":"SUM('Раздел 4_2'!$C12:$J12)","v":0}]
["    училища олимпийского резерва",59,null,{"$f":"SUM($G13:$R13,'Раздел 4_2'!$C13:$J13)","v":0},null,null,null,null,null,null,null,null,null,null,null,null,null,null,null,{"$f":"'Раздел 4_2'!K13","v":0},null,{"$f":"SUM('Раздел 4_2'!$C13:$J13)","v":0}]
["    центры спортивной подготовки",60,null,{"$f":"SUM($G14:$R14,'Раздел 4_2'!$C14:$J14)","v":0},null,null,null,null,null,null,null,null,null,null,null,null,null,null,null,{"$f":"'Раздел 4_2'!K14","v":0},null,{"$f":"SUM('Раздел 4_2'!$C14:$J14)","v":0}]
["    ШВСМ, СДЮШОР, \n    ДЮСШ, ДООЦ",61,null,{"$f":"SUM($G15:$R15,'Раздел 4_2'!$C15:$J15)","v":0},null,null,null,null,null,null,null,null,null,null,null,null,null,null,null,{"$f":"'Раздел 4_2'!K15","v":0},null,{"$f":"SUM('Раздел 4_2'!$C15:$J15)","v":0}]
["    другие учреждения \n    и организации",62,null,{"$f":"SUM($G16:$R16,'Раздел 4_2'!$C16:$J16)","v":0},null,null,null,null,null,null,null,null,null,null,null,null,null,null,null,{"$f":"'Раздел 4_2'!K16","v":0},null,{"$f":"SUM('Раздел 4_2'!$C16:$J16)","v":0}]
["Академическая гребля",63,null,{"$f":"SUM($G17:$R17,'Раздел 4_2'!$C17:$J17)","v":0},null,null,null,"Х","Х",null,null,"Х","Х",null,null,"Х","Х",null,null,{"$f":"'Раздел 4_2'!K17","v":0},null,{"$f":"SUM('Раздел 4_2'!$C17:$J17)","v":0}]
["Армрестлинг",64,null,{"$f":"SUM($G18:$R18,'Раздел 4_2'!$C18:$J18)","v":0},null,null,"Х","Х",null,null,"Х","Х",null,null,"Х","Х"]
["Армспорт",65,null,{"$f":"SUM($G19:$R19,'Раздел 4_2'!$C19:$J19)","v":0},null,null,"Х",null,"Х","Х","Х",null,"Х","Х","Х",null,"Х","Х",null,{"$f":"'Раздел 4_2'!K19","v":0},null,{"$f":"SUM('Раздел 4_2'!$C19:$J19)","v":0}]
["Бадминтон",66,null,{"$f":"SUM($G20:$R20,'Раздел 4_2'!$C20:$J20)","v":0},null,null,null,"Х",null,null,null,"Х",null,null,null,"Х",null,null,null,{"$f":"'Раздел 4_2'!K20","v":0},null,{"$f":"SUM('Раздел 4_2'!$C20:$J20)","v":0}]
["Баскетбол",67,null,{"$f":"SUM($G21:$R21,'Раздел 4_2'!$C21:$J21)","v":0},null,null,null,"Х",null,"Х",null,"Х",null,"Х",null,"Х",null,"Х",null,{"$f":"'Раздел 4_2'!K21","v":0},null,{"$f":"SUM('Раздел 4_2'!$C21:$J21)","v":0}]
["Баскетбол 3 х 3",68,null,{"$f":"SUM($G22:$R22,'Раздел 4_2'!$C22:$J22)","v":0},null,null,null,"Х","Х","Х",null,"Х","Х","Х",null,"Х","Х","Х"]
["Баскетбол на колясках",69,null,{"$f":"SUM($G23:$R23,'Раздел 4_2'!$C23:$J23)","v":0},null,null,"Х","Х","Х",null,"Х","Х","Х",null,"Х","Х","Х",null,null,{"$f":"'Раздел 4_2'!K23","v":0},null,{"$f":"SUM('Раздел 4_2'!$C23:$J23)","v":0}]
["Биатлон",70,null,{"$f":"SUM($G24:$R24,'Раздел 4_2'!$C24:$J24)","v":0},null,null,"Х",null,"Х",null,"Х",null,"Х",null,"Х",null,"Х",null,null,{"$f":"'Раздел 4_2'!K24","v":0},null,{"$f":"SUM('Раздел 4_2'!$C24:$J24)","v":0}]
["Борьба",71,null,{"$f":"SUM($G25:$R25,'Раздел 4_2'!$C25:$J25)","v":0},null,null,"Х",null,"Х","Х","Х",null,"Х","Х","Х",null,"Х","Х",null,{"$f":"'Раздел 4_2'!K25","v":0},null,{"$f":"SUM('Раздел 4_2'!$C25:$J25)","v":0}]
["Боулинг",72,null,{"$f":"SUM($G26:$R26,'Раздел 4_2'!$C26:$J26)","v":0},null,null,"Х","Х",null,"Х","Х","Х",null,"Х","Х","Х",null,"Х",null,{"$f":"'Раздел 4_2'!K26","v":0},null,{"$f":"SUM('Раздел 4_2'!$C26:$J26)","v":0}]
["Боулинг 10",73,null,{"$f":"SUM($G27:$R27,'Раздел 4_2'!$C27:$J27)","v":0},null,null,"Х",null,"Х","Х","Х",null,"Х","Х","Х",null,"Х","Х",null,{"$f":"'Раздел 4_2'!K27","v":0},null,{"$f":"SUM('Раздел 4_2'!$C27:$J27)","v":0}]
["Бочча",74,null,{"$f":"SUM($G28:$R28,'Раздел 4_2'!$C28:$J28)","v":0},null,null,"Х","Х","Х",null,"Х","Х","Х",null,"Х","Х","Х",null,null,{"$f":"'Раздел 4_2'!K28","v":0},null,{"$f":"SUM('Раздел 4_2'!$C28:$J28)","v":0}]
["Велоспорт - маунтинбайк",75,null,{"$f":"SUM($G29:$R29,'Раздел 4_2'!$C29:$J29)","v":0},null,null,"Х","Х",null,"Х","Х","Х",null,"Х","Х","Х",null,"Х",null,{"$f":"'Раздел 4_2'!K29","v":0},null,{"$f":"SUM('Раздел 4_2'!$C29:$J29)","v":0}]
["Велоспорт - тандем",76,null,{"$f":"SUM($G30:$R30,'Раздел 4_2'!$C30:$J30)","v":0},null,null,"Х",null,"Х","Х","Х",null,"Х","Х","Х",null,"Х","Х",null,{"$f":"'Раздел 4_2'!K30","v":0},null,{"$f":"SUM('Раздел 4_2'!$C30:$J30)","v":0}]
["Велоспорт - шоссе, трек",77,null,{"$f":"SUM($G31:$R31,'Раздел 4_2'!$C31:$J31)","v":0},null,null,null,"Х",null,null,null,"Х",null,null,null,"Х",null,null,null,{"$f":"'Раздел 4_2'!K31","v":0},null,{"$f":"SUM('Раздел 4_2'!$C31:$J31)","v":0}]
["Волейбол 6 x 6",78,null,{"$f":"SUM($G32:$R32,'Раздел 4_2'!$C32:$J32)","v":0},null,null,"Х","Х",null,"Х","Х","Х",null,"Х","Х","Х",null,"Х",null,{"$f":"'Раздел 4_2'!K32","v":0},null,{"$f":"SUM('Раздел 4_2'!$C32:$J32)","v":0}]
["Волейбол пляжный",79,null,{"$f":"SUM($G33:$R33,'Раздел 4_2'!$C33:$J33)","v":0},null,null,"Х","Х",null,"Х","Х","Х",null,"Х","Х","Х",null,"Х",null,{"$f":"'Раздел 4_2'!K33","v":0},null,{"$f":"SUM('Раздел 4_2'!$C33:$J33)","v":0}]
["Волейбол сидя",80,null,{"$f":"SUM($G34:$R34,'Раздел 4_2'!$C34:$J34)","v":0},null,null,"Х","Х","Х",null,"Х","Х","Х",null,"Х","Х","Х",null,null,{"$f":"'Раздел 4_2'!K34","v":0},null,{"$f":"SUM('Раздел 4_2'!$C34:$J34)","v":0}]
["Вольная борьба",81,null,{"$f":"SUM($G35:$R35,'Раздел 4_2'!$C35:$J35)","v":0},null,null,"Х","Х",null,"Х","Х","Х",null,"Х","Х","Х",null,"Х",null,{"$f":"'Раздел 4_2'!K35","v":0},null,{"$f":"SUM('Раздел 4_2'!$C35:$J35)","v":0}]
["Гандбол",82,null,{"$f":"SUM($G36:$R36,'Раздел 4_2'!$C36:$J36)","v":0},null,null,null,"Х",null,"Х",null,"Х",null,"Х",null,"Х",null,"Х",null,{"$f":"'Раздел 4_2'!K36","v":0},null,{"$f":"SUM('Раздел 4_2'!$C36:$J36)","v":0}]
["Голбол (B1, B2, B3)",83,null,{"$f":"SUM($G37:$R37,'Раздел 4_2'!$C37:$J37)","v":0},null,null,"Х",null,"Х","Х","Х",null,"Х","Х","Х",null,"Х","Х",null,{"$f":"'Раздел 4_2'!K37","v":0},null,{"$f":"SUM('Раздел 4_2'!$C37:$J37)","v":0}]
["Гольф",84,null,{"$f":"SUM($G38:$R38,'Раздел 4_2'!$C38:$J38)","v":0},null,null,"Х","Х",null,"Х","Х","Х",null,"Х","Х","Х",null,"Х",null,{"$f":"'Раздел 4_2'!K38","v":0},null,{"$f":"SUM('Раздел 4_2'!$C38:$J38)","v":0}]
["Горнолыжный спорт",85,null,{"$f":"SUM($G39:$R39,'Раздел 4_2'!$C39:$J39)","v":0},null,null,null,null,null,null,null,null,null,null,null,null,null,null,null,{"$f":"'Раздел 4_2'!K39","v":0},null,{"$f":"SUM('Раздел 4_2'!$C39:$J39)","v":0}]
["Гребля на байдарках и каноэ",86,null,{"$f":"SUM($G40:$R40,'Раздел 4_2'!$C40:$J40)","v":0},null,null,"Х","Х","Х",null,"Х","Х","Х",null,"Х","Х","Х",null,null,{"$f":"'Раздел 4_2'!K40","v":0},null,{"$f":"SUM('Раздел 4_2'!$C40:$J40)","v":0}]
["Греко-римская борьба",87,null,{"$f":"SUM($G41:$R41,'Раздел 4_2'!$C41:$J41)","v":0},null,null,"Х","Х",null,"Х","Х","Х",null,"Х","Х","Х",null,"Х",null,{"$f":"'Раздел 4_2'!K41","v":0},null,{"$f":"SUM('Раздел 4_2'!$C41:$J41)","v":0}]
["Дартс",88,null,{"$f":"SUM($G42:$R42,'Раздел 4_2'!$C42:$J42)","v":0},null,null,"Х","Х","Х",null,"Х","Х","Х",null,"Х","Х","Х",null,null,{"$f":"'Раздел 4_2'!K42","v":0},null,{"$f":"SUM('Раздел 4_2'!$C42:$J42)","v":0}]
["Дзюдо",89,null,{"$f":"SUM($G43:$R43,'Раздел 4_2'!$C43:$J43)","v":0},null,null,null,null,null,"Х",null,null,null,"Х",null,null,null,"Х",null,{"$f":"'Раздел 4_2'!K43","v":0},null,{"$f":"SUM('Раздел 4_2'!$C43:$J43)","v":0}]
["Каратэ",90,null,{"$f":"SUM($G44:$R44,'Раздел 4_2'!$C44:$J44)","v":0},null,null,"Х","Х",null,"Х","Х","Х",null,"Х","Х","Х",null,"Х",null,{"$f":"'Раздел 4_2'!K44","v":0},null,{"$f":"SUM('Раздел 4_2'!$C44:$J44)","v":0}]
["Керлинг 4 x 4",91,null,{"$f":"SUM($G45:$R45,'Раздел 4_2'!$C45:$J45)","v":0},null,null,"Х","Х",null,"Х","Х","Х",null,"Х","Х","Х",null,"Х",null,{"$f":"'Раздел 4_2'!K45","v":0},null,{"$f":"SUM('Раздел 4_2'!$C45:$J45)","v":0}]
["Керлинг на колясках",92,null,{"$f":"SUM($G46:$R46,'Раздел 4_2'!$C46:$J46)","v":0},null,null,"Х","Х","Х",null,"Х","Х","Х",null,"Х","Х","Х",null,null,{"$f":"'Раздел 4_2'!K46","v":0},null,{"$f":"SUM('Раздел 4_2'!$C46:$J46)","v":0}]
["Конный спорт",93,null,{"$f":"SUM($G47:$R47,'Раздел 4_2'!$C47:$J47)","v":0},null,null,null,"Х","Х",null,null,"Х","Х",null,null,"Х","Х",null,null,{"$f":"'Раздел 4_2'!K47","v":0},null,{"$f":"SUM('Раздел 4_2'!$C47:$J47)","v":0}]
["Легкая атлетика",94,null,{"$f":"SUM($G48:$R48,'Раздел 4_2'!$C48:$J48)","v":0},null,null,null,null,null,null,null,null,null,null,null,null,null,null,null,{"$f":"'Раздел 4_2'!K48","v":0},null,{"$f":"SUM('Раздел 4_2'!$C48:$J48)","v":0}]
["Лыжные гонки",95,null,{"$f":"SUM($G49:$R49,'Раздел 4_2'!$C49:$J49)","v":0},null,null,null,null,null,null,null,null,null,null,null,null,null,null,null,{"$f":"'Раздел 4_2'!K49","v":0},null,{"$f":"SUM('Раздел 4_2'!$C49:$J49)","v":0}]
["Мини-футбол (футзал)",96,null,{"$f":"SUM($G50:$R50,'Раздел 4_2'!$C50:$J50)","v":0},null,null,null,"Х",null,"Х",null,"Х",null,"Х",null,"Х",null,"Х"]
["Мини-футбол (футзал) 5 x 5 (B1, B2, B3)",97,null,{"$f":"SUM($G51:$R51,'Раздел 4_2'!$C51:$J51)","v":0},null,null,"Х",null,"Х","Х","Х",null,"Х","Х","Х",null,"Х","Х",null,{"$f":"'Раздел 4_2'!K51","v":0},null,{"$f":"SUM('Раздел 4_2'!$C51:$J51)","v":0}]
["Настольный теннис",98,null,{"$f":"SUM($G52:$R52,'Раздел 4_2'!$C52:$J52)","v":0},null,null,null,null,null,null,null,null,null,null,null,null,null,null,null,{"$f":"'Раздел 4_2'!K52","v":0},null,{"$f":"SUM('Раздел 4_2'!$C52:$J52)","v":0}]
["Парусный спорт",99,null,{"$f":"SUM($G53:$R53,'Раздел 4_2'!$C53:$J53)","v":0},null,null,"Х","Х","Х",null,"Х","Х","Х",null,"Х","Х","Х",null,null,{"$f":"'Раздел 4_2'!K53","v":0},null,{"$f":"SUM('Раздел 4_2'!$C53:$J53)","v":0}]
["Пауэрлифтинг",100,null,{"$f":"SUM($G54:$R54,'Раздел 4_2'!$C54:$J54)","v":0},null,null,null,null,"Х",null,null,null,"Х",null,null,null,"Х",null,null,{"$f":"'Раздел 4_2'!K54","v":0},null,{"$f":"SUM('Раздел 4_2'!$C54:$J54)","v":0}]
["Плавание",101,null,{"$f":"SUM($G55:$R55,'Раздел 4_2'!$C55:$J55)","v":0},null,null,null,null,null,null,null,null,null,null,null,null,null,null,null,{"$f":"'Раздел 4_2'!K55","v":0},null,{"$f":"SUM('Раздел 4_2'!$C55:$J55)","v":0}]
["Пулевая стрельба",102,null,{"$f":"SUM($G56:$R56,'Раздел 4_2'!$C56:$J56)","v":0},null,null,"Х",null,null,null,"Х",null,null,null,"Х",null,null,null,null,{"$f":"'Раздел 4_2'!K56","v":0},null,{"$f":"SUM('Раздел 4_2'!$C56:$J56)","v":0}]
["Самбо",103,null,{"$f":"SUM($G57:$R57,'Раздел 4_2'!$C57:$J57)","v":0},null,null,"Х",null,null,"Х","Х",null,null,"Х","Х",null,null,"Х"]
["Сноуборд",104,null,{"$f":"SUM($G58:$R58,'Раздел 4_2'!$C58:$J58)","v":0},null,null,"Х","Х",null,null,"Х","Х",null,null,"Х","Х",null,null,null,{"$f":"'Раздел 4_2'!K58","v":0},null,{"$f":"SUM('Раздел 4_2'!$C58:$J58)","v":0}]
["Спортивная гимнастика",105,null,{"$f":"SUM($G59:$R59,'Раздел 4_2'!$C59:$J59)","v":0},null,null,null,"Х","Х","Х",null,"Х","Х","Х",null,"Х","Х","Х",null,{"$f":"'Раздел 4_2'!K59","v":0},null,{"$f":"SUM('Раздел 4_2'!$C59:$J59)","v":0}]
["Регби на колясках",106,null,{"$f":"SUM($G60:$R60,'Раздел 4_2'!$C60:$J60)","v":0},null,null,"Х","Х","Х",null,"Х","Х","Х",null,"Х","Х","Х",null,null,{"$f":"'Раздел 4_2'!K60","v":0},null,{"$f":"SUM('Раздел 4_2'!$C60:$J60)","v":0}]
["Спортивное ориентирование",107,null,{"$f":"SUM($G61:$R61,'Раздел 4_2'!$C61:$J61)","v":0},null,null,"Х","Х",null,null,"Х","Х",null,null,"Х","Х",null,null,null,{"$f":"'Раздел 4_2'!K61","v":0},null,{"$f":"SUM('Раздел 4_2'!$C61:$J61)","v":0}]
["Спортивный туризм",108,null,{"$f":"SUM($G62:$R62,'Раздел 4_2'!$C62:$J62)","v":0},null,null,"Х",null,"Х","Х","Х",null,"Х","Х","Х",null,"Х","Х",null,{"$f":"'Раздел 4_2'!K62","v":0},null,{"$f":"SUM('Раздел 4_2'!$C62:$J62)","v":0}]
["Стрельба из лука",109,null,{"$f":"SUM($G63:$R63,'Раздел 4_2'!$C63:$J63)","v":0},null,null,"Х","Х","Х",null,"Х","Х","Х",null,"Х","Х","Х",null,null,{"$f":"'Раздел 4_2'!K63","v":0},null,{"$f":"SUM('Раздел 4_2'!$C63:$J63)","v":0}]
["Танцы на колясках",110,null,{"$f":"SUM($G64:$R64,'Раздел 4_2'!$C64:$J64)","v":0},null,null,"Х","Х","Х",null,"Х","Х","Х",null,"Х","Х","Х",null,null,{"$f":"'Раздел 4_2'!K64","v":0},null,{"$f":"SUM('Раздел 4_2'!$C64:$J64)","v":0}]
["Теннис",111,null,{"$f":"SUM($G65:$R65,'Раздел 4_2'!$C65:$J65)","v":0},null,null,null,"Х",null,"Х",null,"Х",null,"Х",null,"Х",null,"Х",null,{"$f":"'Раздел 4_2'!K65","v":0},null,{"$f":"SUM('Раздел 4_2'!$C65:$J65)","v":0}]
["Теннис на колясках",112,null,{"$f":"SUM($G66:$R66,'Раздел 4_2'!$C66:$J66)","v":0},null,null,"Х","Х","Х",null,"Х","Х","Х",null,"Х","Х","Х",null,null,{"$f":"'Раздел 4_2'!K66","v":0},null,{"$f":"SUM('Раздел 4_2'!$C66:$J66)","v":0}]
["Триатлон",113,null,{"$f":"SUM($G67:$R67,'Раздел 4_2'!$C67:$J67)","v":0},null,null,"Х","Х","Х",null,"Х","Х","Х",null,"Х","Х","Х",null,null,{"$f":"'Раздел 4_2'!K67","v":0},null,{"$f":"SUM('Раздел 4_2'!$C67:$J67)","v":0}]
["Торбол (B1, B2, B3)",114,null,{"$f":"SUM($G68:$R68,'Раздел 4_2'!$C68:$J68)","v":0},null,null,"Х",null,"Х","Х","Х",null,"Х","Х","Х",null,"Х","Х",null,{"$f":"'Раздел 4_2'!K68","v":0},null,{"$f":"SUM('Раздел 4_2'!$C68:$J68)","v":0}]
["Тхэквондо",115,null,{"$f":"SUM($G69:$R69,'Раздел 4_2'!$C69:$J69)","v":0},null,null,null,"Х",null,null,null,"Х",null,null,null,"Х",null,null,null,{"$f":"'Раздел 4_2'!K69","v":0},null,{"$f":"SUM('Раздел 4_2'!$C69:$J69)","v":0}]
["Фехтование",116,null,{"$f":"SUM($G70:$R70,'Раздел 4_2'!$C70:$J70)","v":0},null,null,"Х","Х","Х",null,"Х","Х","Х",null,"Х","Х","Х",null,null,{"$f":"'Раздел 4_2'!K70","v":0},null,{"$f":"SUM('Раздел 4_2'!$C70:$J70)","v":0}]
["Футбол",117,null,{"$f":"SUM($G71:$R71,'Раздел 4_2'!$C71:$J71)","v":0},null,null,null,"Х","Х","Х",null,"Х","Х","Х",null,"Х","Х","Х",null,{"$f":"'Раздел 4_2'!K71","v":0},null,{"$f":"SUM('Раздел 4_2'!$C71:$J71)","v":0}]
["Футбол 11 x 11",118,null,{"$f":"SUM($G72:$R72,'Раздел 4_2'!$C72:$J72)","v":0},null,null,"Х","Х",null,"Х","Х","Х",null,"Х","Х","Х",null,"Х",null,{"$f":"'Раздел 4_2'!K72","v":0},null,{"$f":"SUM('Раздел 4_2'!$C72:$J72)","v":0}]
["Футбол ампутантов",119,null,{"$f":"SUM($G73:$R73,'Раздел 4_2'!$C73:$J73)","v":0},null,null,"Х","Х","Х",null,"Х","Х","Х",null,"Х","Х","Х",null,null,{"$f":"'Раздел 4_2'!K73","v":0},null,{"$f":"SUM('Раздел 4_2'!$C73:$J73)","v":0}]
["Футбол лиц с заболеванием ЦП",120,null,{"$f":"SUM($G74:$R74,'Раздел 4_2'!$C74:$J74)","v":0},null,null,"Х","Х","Х",null,"Х","Х","Х",null,"Х","Х","Х",null,null,{"$f":"'Раздел 4_2'!K74","v":0},null,{"$f":"SUM('Раздел 4_2'!$C74:$J74)","v":0}]
["Хоккей (6 x 6)",121,null,{"$f":"SUM($G75:$R75,'Раздел 4_2'!$C75:$J75)","v":0},null,null,"Х","Х",null,"Х","Х","Х",null,"Х","Х","Х",null,"Х",null,{"$f":"'Раздел 4_2'!K75","v":0},null,{"$f":"SUM('Раздел 4_2'!$C75:$J75)","v":0}]
["Хоккей-следж",122,null,{"$f":"SUM($G76:$R76,'Раздел 4_2'!$C76:$J76)","v":0},null,null,"Х","Х","Х",null,"Х","Х","Х",null,"Х","Х","Х",null,null,{"$f":"'Раздел 4_2'!K76","v":0},null,{"$f":"SUM('Раздел 4_2'!$C76:$J76)","v":0}]
["Шахматы",123,null,{"$f":"SUM($G77:$R77,'Раздел 4_2'!$C77:$J77)","v":0},null,null,"Х",null,null,null,"Х",null,null,null,"Х",null,null,null,null,{"$f":"'Раздел 4_2'!K77","v":0},null,{"$f":"SUM('Раздел 4_2'!$C77:$J77)","v":0}]
["Шашки",124,null,{"$f":"SUM($G78:$R78,'Раздел 4_2'!$C78:$J78)","v":0},null,null,"Х",null,null,null,"Х",null,null,null,"Х",null,null,null,null,{"$f":"'Раздел 4_2'!K78","v":0},null,{"$f":"SUM('Раздел 4_2'!$C78:$J78)","v":0}]
["Другие виды спорта (спортивные дисциплины), не входящие в виды спорта инвалидов",125,null,{"$f":"SUM($G79:$R79,'Раздел 4_2'!$C79:$J79)","v":0},null,null,null,null,null,null,null,null,null,null,null,null,null,null,null,{"$f":"'Раздел 4_2'!K79","v":0},null,{"$f":"SUM('Раздел 4_2'!$C79:$J79)","v":0}]
["Из строки 53 - в сельской местности",126,null,{"$f":"SUM($G80:$R80,$V80)","v":0},null,{"$f":"F$7","v":0},null,null,null,null,null,null,null,null,null,null,null,null,null,{"$f":"'Раздел 4_2'!K80","v":0},null,{"$f":"SUM('Раздел 4_2'!$C80:$J80)","v":0}]

{"sheet":"Раздел 4_2","index":5,"n_rows":80,"n_cols":20,"rows_kept":80,"cut":false,"hidden":false,"merged":[[0,0,0,17],[2,0,4,0],[2,1,4,1],[2,2,2,9],[2,10,2,16],[1,0,1,17],[2,17,4,17],[3,2,3,5],[3,6,3,9],[3,10,4,10],[3,11,3,13],[3,14,4,14],[3,15,4,15],[3,16,4,16]]}
["Раздел IV. Развитие видов спорта"]
["Коды по ОКЕИ: единица - 642; человек — 792"]
["Спортивные дисциплины (в соответствии с ВРВС по видам спорта инвалидов)","№ \nстроки","Численность занимающихся на этапах подготовки (чел.)",null,null,null,null,null,null,null,"из числа занимающихся (гр. 4) спортсменов-разрядников:",null,null,null,null,null,null,"Число штатных тренеров-преподавателей (чел.)"]
[null,null,"спортивного совершенствования",null,null,null,"высшего спортивного мастерства",null,null,null,"Всего (сумма граф 28, 31 - 33)","массовые разряды (юношеский, III, II, I разряды, КМС)",null,null,"МС","МСМК и гроссмейстер России","ЗМС"]
[null,null,"Спорт лиц с интеллектуальными нарушениями","Спорт слепых","Спорт глухих","Спорт ОДА","Спорт лиц с интеллектуальными нарушениями","Спорт слепых","Спорт глухих","Спорт ОДА",null,"Всего","из графы 28 \nI разряд","из графы 28 КМС",null,null,null,null,null,"Раздел4_1"]
[1,2,19,20,21,22,23,24,25,26,27,28,29,30,31,32,33,34,null,4]
["Итого\n(сумма строк 63 - 125)",53,{"$f":"SUM(C17:C79)","v":0},{"$f":"SUM(D17:D79)","v":0},0,0,0,0,0,0,{"$f":"SUM(K17:K79)","v":0},{"$f":"SUM(L17:L79)","v":0},0,0,0,0,0,0,null,{"$f":"'Раздел 4_1'!D7","v":0}]
["    в том числе из строки 53:\n    центры спортивной \n    подготовки по\n    спорту инвалидов",54,null,null,null,null,null,null,null,null,{"$f":"SUM($L8,$O8:$Q8)","v":0},null,null,null,null,null,null,null,null,{"$f":"'Раздел 4_1'!D8","v":0}]
["    физкультурно-спортивные\n    клубы инвалидов",55,null,null,null,null,null,null,null,null,{"$f":"SUM($L9,$O9:$Q9)","v":0},null,null,null,null,null,null,null,null,{"$f":"'Раздел 4_1'!D9","v":0}]
["    ДЮСАШ",56,null,null,null,null,null,null,null,null,0,null,null,null,null,null,null,null,null,{"$f":"'Раздел 4_1'!D10","v":0}]
["    СДЮСАШ",57,null,null,null,null,null,null,null,null,0,null,null,null,null,null,null,null,null,{"$f":"'Раздел 4_1'!D11","v":0}]
["    спортивные учреждения \n    по спорту инвалидов",58,null,null,null,null,null,null,null,null,0,null,null,null,null,null,null,null,null,{"$f":"'Раздел 4_1'!D12","v":0}]
["    училища олимпийского резерва",59,null,null,null,null,null,null,null,null,0,null,null,null,null,null,null,null,null,{"$f":"'Раздел 4_1'!D13","v":0}]
["    центры спортивной подготовки",60,null,null,null,null,null,null,null,null,0,null,null,null,null,null,null,null,null,{"$f":"'Раздел 4_1'!D14","v":0}]
["    ШВСМ, СДЮШОР, \n    ДЮСШ, ДООЦ",61,null,null,null,null,null,null,null,null,0,null,null,null,null,null,null,null,null,{"$f":"'Раздел 4_1'!D15","v":0}]
["    другие учреждения \n    и организации",62,null,null,null,null,null,null,null,null,0,null,null,null,null,null,null,null,null,{"$f":"'Раздел 4_1'!D16","v":0}]
["Академическая гребля",63,null,"Х","Х",null,null,"Х","Х",null,0,null,null,null,null,null,null,null,null,{"$f":"'Раздел 4_1'!D17","v":0}]
["Армрестлинг",64,"Х","Х",null,null,"Х","Х",null,null,0,null,null,null,null,null,null,null,null,{"$f":"'Раздел 4_1'!D18","v":0}]
["Армспорт",65,"Х",null,"Х","Х","Х",null,"Х","Х",0,null,null,null,null,null,null,null,null,{"$f":"'Раздел 4_1'!D19","v":0}]
["Бадминтон",66,null,"Х",null,null,null,"Х",null,null,0,null,null,null,null,null,null,null,null,{"$f":"'Раздел 4_1'!D20","v":0}]
["Баскетбол",67,null,"Х",null,"Х",null,"Х",null,"Х",0,null,null,null,null,null,null,null,null,{"$f":"'Раздел 4_1'!D21","v":0}]
["Баскетбол 3 х 3",68,null,"Х","Х","Х",null,"Х","Х","Х",0,null,null,null,null,null,null,null,null,{"$f":"'Раздел 4_1'!D22","v":0}]
["Баскетбол на колясках",69,"Х","Х","Х",null,"Х","Х","Х",null,0,null,null,null,null,null,null,null,null,{"$f":"'Раздел 4_1'!D23","v":0}]
["Биатлон",70,"Х",null,"Х",null,"Х",null,"Х",null,0,null,null,null,null,null,null,null,null,{"$f":"'Раздел 4_1'!D24","v":0}]
["Борьба",71,"Х",null,"Х","Х","Х",null,"Х","Х",0,null,null,null,null,null,null,null,null,{"$f":"'Раздел 4_1'!D25","v":0}]
["Боулинг",72,"Х","Х",null,"Х","Х","Х",null,"Х",0,null,null,null,null,null,null,null,null,{"$f":"'Раздел 4_1'!D26","v":0}]
["Боулинг 10",73,"Х",null,"Х","Х","Х",null,"Х","Х",0,null,null,null,null,null,null,null,null,{"$f":"'Раздел 4_1'!D27","v":0}]
["Бочча",74,"Х","Х","Х",null,"Х","Х","Х",null,0,null,null,null,null,null,null,null,null,{"$f":"'Раздел 4_1'!D28","v":0}]
["Велоспорт - маунтинбайк",75,"Х","Х",null,"Х","Х","Х",null,"Х",0,null,null,null,null,null,null,null,null,{"$f":"'Раздел 4_1'!D29","v":0}]
["Велоспорт - тандем",76,"Х",null,"Х","Х","Х",null,"Х","Х",0,null,null,null,null,null,null,null,null,{"$f":"'Раздел 4_1'!D30","v":0}]
["Велоспорт - шоссе, трек",77,null,"Х",null,null,null,"Х",null,null,0,null,null,null,null,null,null,null,null,{"$f":"'Раздел 4_1'!D31","v":0}]
["Волейбол 6 x 6",78,"Х","Х",null,"Х","Х","Х",null,"Х",0,null,null,null,null,null,null,null,null,{"$f":"'Раздел 4_1'!D32","v":0}]
["Волейбол пляжный",79,"Х","Х",null,"Х","Х","Х",null,"Х",0,null,null,null,null,null,null,null,null,{"$f":"'Раздел 4_1'!D33","v":0}]
["Волейбол сидя",80,"Х","Х","Х",null,"Х","Х","Х",null,0,null,null,null,null,null,null,null,null,{"$f":"'Раздел 4_1'!D34","v":0}]
["Вольная борьба",81,"Х","Х",null,"Х","Х","Х",null,"Х",0,null,null,null,null,null,null,null,null,{"$f":"'Раздел 4_1'!D35","v":0}]
["Гандбол",82,null,"Х",null,"Х",null,"Х",null,"Х",0,null,null,null,null,null,null,null,null,{"$f":"'Раздел 4_1'!D36","v":0}]
["Голбол (B1, B2, B3)",83,"Х",null,"Х","Х","Х",null,"Х","Х",0,null,null,null,null,null,null,null,null,{"$f":"'Раздел 4_1'!D37","v":0}]
["Гольф",84,"Х","Х",null,"Х","Х","Х",null,"Х",0,null,null,null,null,null,null,null,null,{"$f":"'Раздел 4_1'!D38","v":0}]
["Горнолыжный спорт",85,null,null,null,null,null,null,null,null,0,null,null,null,null,null,null,null,null,{"$f":"'Раздел 4_1'!D39","v":0}]
["Гребля на байдарках и каноэ",86,"Х","Х","Х",null,"Х","Х","Х",null,0,null,null,null,null,null,null,null,null,{"$f":"'Раздел 4_1'!D40","v":0}]
["Греко-римская борьба",87,"Х","Х",null,"Х","Х","Х",null,"Х",0,null,null,null,null,null,null,null,null,{"$f":"'Раздел 4_1'!D41","v":0}]
["Дартс",88,"Х","Х","Х",null,"Х","Х","Х",null,0,null,null,null,null,null,null,null,null,{"$f":"'Раздел 4_1'!D42","v":0}]
["Дзюдо",89,null,null,null,"Х",null,null,null,"Х",0,null,null,null,null,null,null,null,null,{"$f":"'Раздел 4_1'!D43","v":0}]
["Каратэ",90,"Х","Х",null,"Х","Х","Х",null,"Х",0,null,null,null,null,null,null,null,null,{"$f":"'Раздел 4_1'!D44","v":0}]
["Керлинг 4 x 4",91,"Х","Х",null,"Х","Х","Х",null,"Х",0,null,null,null,null,null,null,null,null,{"$f":"'Раздел 4_1'!D45","v":0}]
["Керлинг на колясках",92,"Х","Х","Х",null,"Х","Х","Х",null,0,null,null,null,null,null,null,null,null,{"$f":"'Раздел 4_1'!D46","v":0}]
["Конный спорт",93,null,"Х","Х",null,null,"Х","Х",null,0,null,null,null,null,null,null,null,null,{"$f":"'Раздел 4_1'!D47","v":0}]
["Легкая атлетика",94,null,null,null,null,null,null,null,null,0,null,null,null,null,null,null,null,null,{"$f":"'Раздел 4_1'!D48","v":0}]
["Лыжные гонки",95,null,null,null,null,null,null,null,null,0,null,null,null,null,null,null,null,null,{"$f":"'Раздел 4_1'!D49","v":0}]
["Мини-футбол (футзал)",96,null,"Х",null,"Х",null,"Х",null,"Х",0,null,null,null,null,null,null,null,null,{"$f":"'Раздел 4_1'!D50","v":0}]
["Мини-футбол (футзал) 5 x 5 (B1, B2, B3)",97,"Х",null,"Х","Х","Х",null,"Х","Х",0,null,null,null,null,null,null,null,null,{"$f":"'Раздел 4_1'!D51","v":0}]
["Настольный теннис",98,null,null,null,null,null,null,null,null,0,null,null,null,null,null,null,null,null,{"$f":"'Раздел 4_1'!D52","v":0}]
["Парусный спорт",99,"Х","Х","Х",null,"Х","Х","Х",null,0,null,null,null,null,null,null,null,null,{"$f":"'Раздел 4_1'!D53","v":0}]
["Пауэрлифтинг",100,null,null,"Х",null,null,null,"Х",null,0,null,null,null,null,null,null,null,null,{"$f":"'Раздел 4_1'!D54","v":0}]
["Плавание",101,null,null,null,null,null,null,null,null,0,null,null,null,null,null,null,null,null,{"$f":"'Раздел 4_1'!D55","v":0}]
["Пулевая стрельба",102,"Х",null,null,null,"Х",null,null,null,0,null,null,null,null,null,null,null,null,{"$f":"'Раздел 4_1'!D56","v":0}]
["Самбо",103,"Х",null,null,"Х","Х",null,null,"Х",0,null,null,null,null,null,null,null,null,{"$f":"'Раздел 4_1'!D57","v":0}]
["Сноуборд",104,"Х","Х",null,null,"Х","Х",null,null,0,null,null,null,null,null,null,null,null,{"$f":"'Раздел 4_1'!D58","v":0}]
["Спортивная гимнастика",105,null,"Х","Х","Х",null,"Х","Х","Х",0,null,null,null,null,null,null,null,null,{"$f":"'Раздел 4_1'!D59","v":0}]
["Регби на колясках",106,"Х","Х","Х",null,"Х","Х","Х",null,0,null,null,null,null,null,null,null,null,{"$f":"'Раздел 4_1'!D60","v":0}]
["Спортивное ориентирование",107,"Х","Х",null,null,"Х","Х",null,null,0,null,null,null,null,null,null,null,null,{"$f":"'Раздел 4_1'!D61","v":0}]
["Спортивный туризм",108,"Х",null,"Х","Х","Х",null,"Х","Х",0,null,null,null,null,null,null,null,null,{"$f":"'Раздел 4_1'!D62","v":0}]
["Стрельба из лука",109,"Х","Х","Х",null,"Х","Х","Х",null,0,null,null,null,null,null,null,null,null,{"$f":"'Раздел 4_1'!D63","v":0}]
["Танцы на колясках",110,"Х","Х","Х",null,"Х","Х","Х",null,0,null,null,null,null,null,null,null,null,{"$f":"'Раздел 4_1'!D64","v":0}]
["Теннис",111,null,"Х",null,"Х",null,"Х",null,"Х",0,null,null,null,null,null,null,null,null,{"$f":"'Раздел 4_1'!D65","v":0}]
["Теннис на колясках",112,"Х","Х","Х",null,"Х","Х","Х",null,0,null,null,null,null,null,null,null,null,{"$f":"'Раздел 4_1'!D66","v":0}]
["Триатлон",113,"Х","Х","Х",null,"Х","Х","Х",null,0,null,null,null,null,null,null,null,null,{"$f":"'Раздел 4_1'!D67","v":0}]
["Торбал (B1, B2, B3)",114,"Х",null,"Х","Х","Х",null,"Х","Х",0,null,null,null,null,null,null,null,null,{"$f":"'Раздел 4_1'!D68","v":0}]
["Тхэквондо",115,null,"Х",null,null,null,"Х",null,null,0,null,null,null,null,null,null,null,null,{"$f":"'Раздел 4_1'!D69","v":0}]
["Фехтование",116,"Х","Х","Х",null,"Х","Х","Х",null,0,null,null,null,null,null,null,null,null,{"$f":"'Раздел 4_1'!D70","v":0}]
["Футбол",117,null,"Х","Х","Х",null,"Х","Х","Х",0,null,null,null,null,null,null,null,null,{"$f":"'Раздел 4_1'!D71","v":0}]
["Футбол 11 x 11",118,"Х","Х",null,"Х","Х","Х",null,"Х",0,null,null,null,null,null,null,null,null,{"$f":"'Раздел 4_1'!D72","v":0}]
["Футбол ампутантов",119,"Х","Х","Х",null,"Х","Х","Х",null,0,null,null,null,null,null,null,null,null,{"$f":"'Раздел 4_1'!D73","v":0}]
["Футбол лиц с заболеванием ЦП",120,"Х","Х","Х",null,"Х","Х","Х",null,0,null,null,null,null,null,null,null,null,{"$f":"'Раздел 4_1'!D74","v":0}]
["Хоккей (6 x 6)",121,"Х","Х",null,"Х","Х","Х",null,"Х",{"$f":"SUM($L75,$O75:$Q75)","v":0},null,null,null,null,null,null,null,null,{"$f":"'Раздел 4_1'!D75","v":0}]
["Хоккей-следж",122,"Х","Х","Х",null,"Х","Х","Х",null,0,null,null,null,null,null,null,null,null,{"$f":"'Раздел 4_1'!D76","v":0}]
["Шахматы",123,"Х",null,null,null,"Х",null,null,null,0,null,null,null,null,null,null,null,null,{"$f":"'Раздел 4_1'!D77","v":0}]
["Шашки",124,"Х",null,null,null,"Х",null,null,null,0,null,null,null,null,null,null,null,null,{"$f":"'Раздел 4_1'!D78","v":0}]
["Другие виды спорта (спортивные дисциплины), не входящие в виды спорта инвалидов",125,null,null,null,null,null,null,null,null,0,null,null,null,null,null,null,null,null,{"$f":"'Раздел 4_1'!D79","v":0}]
["Из строки 53 - в сельской местности",126,null,null,null,null,null,null,null,null,0,null,null,null,null,null,null,null,null,{"$f":"'Раздел 4_1'!D80","v":0}]

{"sheet":"Раздел 5","index":6,"n_rows":7,"n_cols":20,"rows_kept":7,"cut":false,"hidden":false,"merged":[[3,19,4,19],[1,0,1,19],[0,0,0,19],[2,0,4,0],[2,1,4,1],[2,3,3,15],[3,16,3,18],[2,16,2,19],[2,2,4,2]]}
["Раздел V. Численность занимающихся по программам спортивной подготовки в физкультурно-спортивных организациях детей-инвалидов в возрасте от 5 до 18 лет"]
["Коды по ОКЕИ: человек - 792"]
["Наименование показателя","№ \nстроки","Всего","Возрастной состав занимающихся (число полных лет по состоянию на 31 декабря отчетного года)",null,null,null,null,null,null,null,null,null,null,null,null,"Распределение численности занимающихся по источникам финансирования"]
[null,null,null,null,null,null,null,null,null,null,null,null,null,null,null,null,"За счет бюджетных ассигнований:",null,null,"По договорам об оказании платных образовательных услуг, услуг по спортивной подготовке"]
[null,null,null,5,6,7,8,9,10,11,12,13,14,15,16,17,"федерального бюджета","бюджета субъекта Российской Федерации","местного бюджета"]
[1,2,3,4,5,6,7,8,9,10,11,12,13,14,15,16,17,18,19,20]
["Численность занимающихся по программам спортивной подготовки в физкультурно-спортивных организациях",127,{"$f":"SUM(D7:P7)","v":0}]

{"sheet":"Раздел 6","index":7,"n_rows":22,"n_cols":7,"rows_kept":22,"cut":false,"hidden":false,"merged":[[21,1,21,2],[21,3,21,4],[21,5,21,6],[20,1,20,2],[20,3,20,4],[20,5,20,6],[17,1,17,2],[17,3,17,4],[17,5,17,6],[18,1,18,2],[0,0,0,6],[1,0,1,6],[2,0,3,0],[2,1,3,1],[2,2,3,2],[2,3,2,6],[18,3,18,4],[18,5,18,6]]}
["Раздел VI. Спортивное мастерство среди инвалидов"]
["Код по ОКЕИ: человек — 792"]
["Разряды, звания, награды","№ строки","Всего","из них (гр. 3): "]
[null,null,null,"Спорт лиц с интеллектуальными нарушениями","Спорт слепых","Спорт глухих","Спорт лиц с поражением ОДА"]
[1,2,3,4,5,6,7]
["Присвоено званий - всего \n(сумма строк 129 - 131)",128,{"$f":"SUM(D6:G6)","v":0},{"$f":"SUM(D7:D9)","v":0},{"$f":"SUM(E7:E9)","v":0},{"$f":"SUM(F7:F9)","v":0},0]
["в том числе:\n- МС",129,{"$f":"SUM(D7:G7)","v":0}]
["- МСМК и Гроссмейстер России",130,0]
["- ЗМС",131,0]
["Подготовлено спортсменов массовых разрядов",132,{"$f":"SUM(D10:G10)","v":0}]
["из них:\n- КМС",133,{"$f":"SUM(D11:G11)","v":0}]
["- I разряд",134,0]
["Присвоено званий - ЗТР",135,0]
["Присвоено званий - ЗРФК",136,0]
["Присуждены другие государственные почетные звания и награды",137,0]
["Присуждены почетные звания и награды субъекта Российской Федерации",138,{"$f":"SUM(D16:G16)","v":0}]
[]
["Должностное лицо, ответственное за предоставление первичных статистических данных (лицо, уполномоченное предоставлять первичные статистические  данные от имени юридического лица)               \n"]
[null,"(должность)",null,"(Ф.И.О.)",null,"(подпись)"]
[]
[]
[null,"(номер контактного телефона) ",null,"E-mail:",null,"(дата составления документа) "]